Cogmind - Beta 13 @@@ ROGUE MODE // 2024.04.28 @ 19:22:26 Player: Faunarr Result: Destroyed by S-27 Virus with Autogun Performance ------------- Evolutions (3) 1500 Regions Visited (8) 1600 Robots Destroyed (94) 470 Value Destroyed (3477) 3477 Prototype IDs (18) 360 Alien Tech Used (0) 0 Bonus (1054) 1054 TOTAL SCORE: 8461 Bonus ------- High Alert Combat Kills 153 Follower Combat Kills 307 Entered Garrisons 200 Used RIF Installer 500 Friendly Fire -106 Cogmind --------- Core Integrity 0/700 Matter 300/300 Energy 100/100 System Corruption 0% Temperature Cool (0) Movement Core (1350) Ox26 Location -7/Lower Caves Parts ------- > --- POWER (1) -------- (None) > --- PROPULSION (3) --- (None) > --- UTILITY (7) ------ Huge Storage Unit System Shield Relay Coupler [NC] (15) Relay Coupler [Swarmer] (3) > --- WEAPON (2) ------- (None) > --- INVENTORY (25) --- Light Deuterium Engine Micro Nuclear Core Makeshift Power Source Aerolev Unit High-capacity Matter Pod (200) Improved Terrain Scanner ECM Suite Relay Coupler [Heavy] (11) Pulse Rifle Heavy Ion Cannon Precision Assault Rifle Battle Cannon Remote Datajack Makeshift Hammer Great Axe Peak State ------------ > --- POWER ------------ Improved Ion Engine > --- PROPULSION ------- Improved Treads Medium Treads Wheel > --- UTILITY ---------- Huge Storage Unit Improved Sensor Array Light Armor Plating Gun Armor Relay Coupler [NC] Relay Coupler [Swarmer] Relay Coupler [Grunt] > --- WEAPON ----------- Improved EM Shotgun Remote Datajack > --- INVENTORY -------- Light Deuterium Engine Light Deuterium Engine Light Nuclear Core Micro Nuclear Core Light Treads Improved Treads Spiked Treads Aerolev Unit High-capacity Matter Pod Improved Terrain Scanner ECM Suite Relay Coupler [Brawler] Relay Coupler [Brawler] Relay Coupler [Sentry] Relay Coupler [Heavy] Improved EM Shotgun Pulse Rifle Heavy Particle Gun Subdweller Machine Gun Precision Assault Rifle Precision Assault Rifle Battle Cannon Shock Bomb Launcher Makeshift Hammer [Rating: 44] Favorites ----------- Power Improved Deuterium Engine Engine Improved Deuterium Engine Power Core Light Nuclear Core Propulsion Light Treads Treads Light Treads Wheel Wheel Hover Unit Aerolev Unit Flight Unit Improved VTOL Module Utility Huge Storage Unit Device Improved Sensor Array Storage Huge Storage Unit Processor Signal Interpreter Hackware Relay Coupler [NC] Protection Layered Light Armor Plating Weapon Improved EM Shotgun Energy Gun Improved EM Shotgun Ballistic Gun Precision Assault Rifle Launcher Shock Bomb Launcher Special Weapon Remote Datajack Impact Weapon Makeshift Hammer Build | -11 -10 -10 -8 -8 -8 -7 -7 -7 ------- Run | Yrd Mat Sub Mat Sto Gar Fac Low Low Slots Evolved 6 | . . . 4 . . 2 . . Power . | . . . . . . . . . Propulsion 1 | . . . 1 . . . . . Utility 5 | . . . 3 . . 2 . . Weapon . | . . . . . . . . . Parts Attached 119 | 4 7 16 11 32 7 9 14 19 Power 12 | 1 . 2 2 3 1 . 1 2 Engine 10 | 1 . 2 2 1 1 . 1 2 Core 2 | . . . . 2 . . . . Reactor . | . . . . . . . . . Propulsion 27 | . 4 1 3 9 . 2 4 4 Treads 17 | . 2 1 1 6 . 1 3 3 Leg . | . . . . . . . . . Wheel 6 | . 2 . 1 1 . 1 1 . Hover 2 | . . . 1 . . . . 1 Flight 2 | . . . . 2 . . . . Utility 21 | 1 2 3 3 1 1 5 1 4 Device 6 | . 1 2 1 1 . . 1 . Storage 2 | 1 1 . . . . . . . Processor 1 | . . . 1 . . . . . Hackware 7 | . . . . . . 5 . 2 Protection 5 | . . 1 1 . 1 . . 2 Artifact . | . . . . . . . . . Weapon 59 | 2 1 10 3 19 5 2 8 9 Energy Gun 16 | 2 . 1 . 5 3 . 2 3 Energy Cannon . | . . . . . . . . . Ballistic Gun 18 | . . 4 1 7 . 1 2 3 Ballistic Cannon . | . . . . . . . . . Launcher 13 | . . 2 1 5 . . 3 2 Special Weapon 7 | . 1 2 1 . . 1 1 1 Impact Weapon 5 | . . 1 . 2 2 . . . Slashing Weapon . | . . . . . . . . . Piercing Weapon . | . . . . . . . . . Special Melee Weapon . | . . . . . . . . . Unidentified Prototypes 8 | . . . 1 6 . 1 . . Parts Lost 38 | . . 3 2 7 . . 10 16 Power 6 | . . 1 . 2 . . 1 2 Propulsion 13 | . . . 1 3 . . 4 5 Utility 7 | . . 1 . . . . 3 3 Weapon 12 | . . 1 1 2 . . 2 6 Highest Loss Streak 8 | . . 3 1 2 . . 8 5 To Critical Strikes . | . . . . . . . . . Average Slot Usage (%) 84 | . 98 84 96 99 100 94 82 77 Engine 8 | . 14 10 7 7 9 7 6 6 Treads 12 | . 27 13 12 17 18 15 14 8 Wheel 4 | . . 13 7 8 9 7 6 . Device 3 | . 3 4 7 8 9 5 2 1 Storage 9 | . 24 13 7 8 9 7 7 7 Processor 1 | . . . 7 8 9 3 . . Hackware 17 | . . . . . . 16 26 28 Protection 7 | . . 2 15 17 18 12 . 8 Energy Gun 8 | . 26 5 . 1 11 7 5 9 Ballistic Gun 4 | . . 8 14 13 2 2 5 1 Special Weapon 2 | . 1 12 2 . . 4 3 . Naked Turns . | . . . . . . . . . Heaviest Build 120 | 14 94 96 110 110 103 102 94 120 Greatest Support 51 | 3 40 20 20 46 10 28 51 40 Greatest Overweight (x) 38 | 4 9 9 35 19 10 10 9 38 Average Overweight (x) 10 | 2 2 8 9 9 10 9 8 18 Largest Inventory Capacity 25 | 8 25 25 25 25 25 25 25 25 Average Capacity 24 | 7 24 25 25 25 25 25 25 25 Most Carried 25 | 7 12 21 25 25 25 25 25 18 Average Carried 16 | 4 8 12 21 24 24 24 21 15 Final Capacity 25 | 8 25 25 25 25 25 25 25 25 Final Carried 25 | 7 11 21 24 25 25 25 18 15 Class Distribution -------------------- 63% | Bothacker-Mutant 32% | Mutant 3% | Commander-Mutant Dominant Class ---------------- Mutant | -10/Materials Mutant | -10/Subcaves Mutant | -8/Materials Mutant | -8/Storage Commander-Mutant | -8/Garrison Bothacker-Mutant | -7/Factory Bothacker-Mutant | -7/Lower Caves Bothacker-Mutant | -7/Lower Caves Resources | -11 -10 -10 -8 -8 -8 -7 -7 -7 ----------- Run | Yrd Mat Sub Mat Sto Gar Fac Low Low Matter Collected 2455 | 240 76 202 209 948 46 164 244 326 Remotely . | . . . . . . . . . Salvage Created 3488 | 28 337 186 279 1534 52 76 510 486 Parts 213 | 2 28 12 18 105 3 7 18 20 Haulers Intercepted . | . . . . . . . . . Recyclers Shooed 1 | . . . . 1 . . . . Parts Field Recycled . | . . . . . . . . . Retrieved Matter . | . . . . . . . . . Parts Self-Destructed 41 | . . 4 . . . . 22 15 Prevented 6 | . . . . . . . 1 5 Kills | -11 -10 -10 -8 -8 -8 -7 -7 -7 ------- Run | Yrd Mat Sub Mat Sto Gar Fac Low Low Combat Hostiles Destroyed 78 | . 8 5 8 33 1 1 13 9 Guns 55 | . 8 1 5 20 1 1 10 9 AOE 22 | . . 3 3 13 . . 3 . Classes Destroyed 13 | 1 4 2 2 3 . 1 . . Worker 2 | . . . . 2 . . . . Builder 7 | . 5 . . 2 . . . . Tunneler 3 | 1 1 . . . . 1 . . Recycler 2 | . 1 . . 1 . . . . Operator 1 | . . . . 1 . . . . Watcher 1 | . . . . 1 . . . . Swarmer 23 | . 6 . 3 7 . . 6 1 Grunt 32 | . 2 . . 16 . . 7 7 Duelist 1 | . . . . . . 1 . . Sentry 15 | . . . 4 9 1 . . 1 Hunter 2 | . . . 1 1 . . . . Artisan 1 | . . 1 . . . . . . Subdweller 5 | . . 5 . . . . . . Best Kill Streak 6 | 1 2 2 3 6 1 2 4 3 Combat Bots Only 4 | . 2 2 3 4 1 1 4 3 Max Kills in Single Turn 4 | 1 1 1 3 4 1 2 2 1 Gunslinging . | . . . . . . . . . Exploded 3 | . . 1 3 3 . . 1 . Melee . | . . . . . . . . . Uniques/NPCs Destroyed . | . . . . . . . . . Combat | -11 -10 -10 -8 -8 -8 -7 -7 -7 -------- Run | Yrd Mat Sub Mat Sto Gar Fac Low Low Hostile Shots Fired 578 | . 42 19 65 138 12 29 95 178 Missed 168 | . 12 8 20 35 3 10 24 56 Damage Taken 5941 | . 282 277 491 1533 168 210 1223 1757 Core 1032 | . 28 83 65 142 . 10 255 449 Absorbed by Shields . | . . . . . . . . . Ignored by Resistances 65 | . . . . . . . . 65 Core Remaining (%) 72 | 100 . 55 . . 62 . . . Volleys Fired 325 | 8 58 72 18 82 2 14 33 38 Largest 2 | 2 2 2 2 2 2 2 2 2 Hottest 130 | 100 100 130 61 106 78 73 83 94 Shots Fired 507 | 16 90 84 36 144 4 15 50 68 Gun 369 | 16 64 17 35 131 4 7 36 59 Cannon . | . . . . . . . . . Launcher 30 | . . 8 1 13 . . 4 4 Special 108 | . 26 59 . . . 8 10 5 Kinetic 205 | . . 5 35 107 2 1 24 31 Thermal 214 | 16 90 71 . 7 2 . 8 20 Explosive 18 | . . 8 1 8 . . 1 . Electromagnetic 47 | . . . . 22 . 6 7 12 Robot Hit Streak 18 | 3 13 10 11 13 3 5 18 9 Robot Miss Streak 4 | 1 3 1 4 4 1 3 2 2 Penetration Max . | . . . . . . . . . Secondary Targets 8 | . 1 . . 1 . . 3 3 Max Gunslinging Chain 1 | . 1 . . 1 . . 1 1 Shots Hit Robots 280 | 9 41 12 19 88 3 10 43 55 Core Hits 155 | 2 19 9 12 68 1 3 22 19 Critical Kills 1 | . . . . . . . . 1 Critical Parts Destroyed 2 | . . . 1 1 . . . . Critical Strikes 15 | 2 8 1 1 1 . . . 2 Burn 12 | 2 8 1 . . . . . 1 Destroy 3 | . . . 1 1 . . . 1 Melee Attacks 16 | . . . . 13 3 . . . Impact 16 | . . . . 13 3 . . . Slashing . | . . . . . . . . . Piercing . | . . . . . . . . . Sneak Attacks . | . . . . . . . . . Combat Hostiles . | . . . . . . . . . Follow-up Attacks . | . . . . . . . . . Damage Inflicted 6686 | 112 573 585 538 2616 55 165 998 1044 Guns 4138 | 112 474 170 331 1414 55 68 627 887 Cannons . | . . . . . . . . . Explosions 2449 | . . 415 207 1202 . 97 371 157 Melee . | . . . . . . . . . Ramming 3 | . 3 . . . . . . . Kinetic 2483 | . . 69 331 1111 18 . 451 503 Thermal 1667 | 112 570 101 . 260 37 97 193 297 Explosive 1667 | . . 415 207 872 . . 173 . Electromagnetic 866 | . . . . 373 . 68 181 244 Impact . | . . . . . . . . . Slashing . | . . . . . . . . . Piercing . | . . . . . . . . . Highest Corruption 3 | . 3 3 . . . . . . Average Corruption 2 | . 2 3 . . . . . . Corruption Purged . | . . . . . . . . . Corruption Blocked . | . . . . . . . . . Effects 57 | . 15 42 . . . . . . Message Errors 17 | . 6 11 . . . . . . Matter Fused 10 | . 2 8 . . . . . . Heat Flow Errors 6 | . 1 5 . . . . . . Energy Discharges 11 | . 3 8 . . . . . . Parts Fused 3 | . 2 1 . . . . . . Data Loss (minor) 4 | . 1 3 . . . . . . Data Loss (major) 5 | . . 5 . . . . . . Misfires 1 | . . 1 . . . . . . Overload Shots . | . . . . . . . . . Overflow Damage 63 | . . . . 28 . . 23 12 Projectiles . | . . . . . . . . . Explosions 63 | . . . . 28 . . 23 12 Melee . | . . . . . . . . . Knockbacks . | . . . . . . . . . Impact . | . . . . . . . . . Kinetic . | . . . . . . . . . Secondary . | . . . . . . . . . Self-Inflicted Damage 318 | . . . 32 109 . 7 82 88 Shots 12 | . . . 1 3 . 1 4 3 Rammed 1 | . 1 . . . . . . . Targets Rammed 1 | . 1 . . . . . . . Kicked . | . . . . . . . . . Crushed . | . . . . . . . . . Highest Temperature 309 | 155 309 258 28 123 27 9 36 279 Average Temperature 55 | 74 62 110 10 25 14 6 15 77 Received Heat Transfer 1971 | . 75 78 63 513 45 45 558 594 Effects 2 | . 1 1 . . . . . . Energy Bleed 1 | . 1 . . . . . . . Interference 1 | . . 1 . . . . . . Siege Activations . | . . . . . . . . . Robots Corrupted . | . . . . . . . . . Combat Hostiles . | . . . . . . . . . Parts Fried 2 | . . . . 1 . 1 . . Impact Corruptions . | . . . . . . . . . Robots Melted 1 | . . 1 . . . . . . Combat Hostiles 1 | . . 1 . . . . . . Parts Melted 6 | 1 2 . . . 1 1 . 1 Heat Transferred 4609 | 481 2198 370 . 372 74 150 322 642 Parts Sabotaged . | . . . . . . . . . Parts Stolen . | . . . . . . . . . Parts Stripped . | . . . . . . . . . Power Chain Reactions 5 | . . . . 2 . 1 1 1 Alert | -11 -10 -10 -8 -8 -8 -7 -7 -7 ------- Run | Yrd Mat Sub Mat Sto Gar Fac Low Low Peak Influence 764 | 5 160 . 184 717 764 463 . . Initial 454 | . 3 . . 77 454 401 . . Average 262 | 1 39 . 51 402 606 356 . . Maximum Alert Level 3 | . . . . 3 3 2 . . Low Security (%) 53 | 100 100 . 100 30 . . . . Level 1 10 | . . . . 18 . 40 . . Level 2 30 | . . . . 49 61 60 . . Level 3 4 | . . . . 1 38 . . . Level 4 . | . . . . . . . . . Level 5 . | . . . . . . . . . High Security . | . . . . . . . . . Max Security . | . . . . . . . . . Squads Dispatched 9 | . . . 1 5 . 2 . 1 Investigation 3 | . . . . 2 . 1 . . Extermination . | . . . . . . . . . Reinforcement 5 | . . . 1 3 . 1 . . Assault 1 | . . . . . . . . 1 Garrison . | . . . . . . . . . Intercept . | . . . . . . . . . Searches Triggered . | . . . . . . . . . Construction Impeded 2 | . . . . 1 . 1 . . Haulers Reinforced . | . . . . . . . . . Active Scanning Responses . | . . . . . . . . . Cargo Convoy Interrupts . | . . . . . . . . . Stealth | -11 -10 -10 -8 -8 -8 -7 -7 -7 --------- Run | Yrd Mat Sub Mat Sto Gar Fac Low Low Distress Signals 7 | . 3 . 2 2 . . . . Communications Jammed . | . . . . . . . . . Distress Signals . | . . . . . . . . . Times Spotted 134 | . 19 5 15 42 8 10 16 19 Peak Tracking Total 6 | . 5 2 6 6 3 3 6 6 Tactical Retreats 7 | . 2 . . 1 . 1 . 3 Traps | -11 -10 -10 -8 -8 -8 -7 -7 -7 ------- Run | Yrd Mat Sub Mat Sto Gar Fac Low Low Traps Triggered 3 | . 1 . . 1 1 . . . Indirectly . | . . . . . . . . . Trap Hack Attempts . | . . . . . . . . . Triggered . | . . . . . . . . . Disarmed 1 | . 1 . . . . . . . Reprogrammed . | . . . . . . . . . Reused . | . . . . . . . . . Traps Extracted . | . . . . . . . . . Installed . | . . . . . . . . . Triggered . | . . . . . . . . . Machines | -11 -10 -10 -8 -8 -8 -7 -7 -7 ---------- Run | Yrd Mat Sub Mat Sto Gar Fac Low Low Machines Disabled 10 | . . 1 . 7 2 . . . Max in Single Turn 1 | . . 1 . 1 1 . . . Garrison Relay 2 | . . . . . 2 . . . Machines Repaired . | . . . . . . . . . Machines Dismantled . | . . . . . . . . . Machines Sabotaged . | . . . . . . . . . Overloaded Fab Kills . | . . . . . . . . . Hacking | -11 -10 -10 -8 -8 -8 -7 -7 -7 --------- Run | Yrd Mat Sub Mat Sto Gar Fac Low Low Machines Accessed 25 | . 5 2 3 7 2 3 3 . Terminals 19 | . 5 . 3 6 2 3 . . Fabricators . | . . . . . . . . . Repair Stations . | . . . . . . . . . Recycling Units . | . . . . . . . . . Scanalyzers . | . . . . . . . . . Garrison Access 1 | . . . . 1 . . . . Total Hacks 58 | . 8 12 4 13 3 6 12 . Successful 39 | . 4 12 4 5 1 1 12 . Failed 19 | . 4 . . 8 2 5 . . Catastrophic 6 | . 1 . . 1 2 2 . . Database Lockouts . | . . . . . . . . . Manual 37 | . 8 2 4 14 3 6 . . Terminals 32 | . 8 . 4 11 3 6 . . Fabricators . | . . . . . . . . . Repair Stations . | . . . . . . . . . Recycling Units . | . . . . . . . . . Scanalyzers . | . . . . . . . . . Garrison Access 2 | . . . . 2 . . . . Terminal Hacks 29 | . 1 12 . 4 . . 12 . Record 21 | . . 11 . . . . 10 . Open Door 5 | . . . . 3 . . 2 . Locate Traps 1 | . . . . 1 . . . . Disarm Traps 1 | . 1 . . . . . . . Derelict Proto ID Bank 1 | . . 1 . . . . . . Fabricator Hacks . | . . . . . . . . . Repair Station Hacks . | . . . . . . . . . Recycling Unit Hacks . | . . . . . . . . . Scanalyzer . | . . . . . . . . . Garrison Access Hacks 1 | . . . . 1 . . . . Unlock Access 1 | . . . . 1 . . . . Unauthorized Hacks 9 | . 3 . 4 . 1 1 . . Terminals 9 | . 3 . 4 . 1 1 . . Botnet 8 | . 3 . 3 . 1 1 . . Operators 1 | . . . 1 . . . . . Fabricators . | . . . . . . . . . Repair Stations . | . . . . . . . . . Recycling Units . | . . . . . . . . . Scanalyzers . | . . . . . . . . . Garrison Access . | . . . . . . . . . Data Cores Recovered . | . . . . . . . . . Used . | . . . . . . . . . Hacking Detections 14 | . 2 . 2 5 2 3 . . Full Trace Events 5 | . 1 . . 2 1 1 . . Feedback Events 1 | . 1 . . . . . . . Corruption 1 | . 1 . . . . . . . Feedback Blocked . | . . . . . . . . . Robot Schematics Acquired . | . . . . . . . . . Robots Built . | . . . . . . . . . Authchips . | . . . . . . . . . Time . | . . . . . . . . . Total Robot Build Rating . | . . . . . . . . . Part Schematics Acquired . | . . . . . . . . . Parts Built . | . . . . . . . . . Authchips . | . . . . . . . . . Time . | . . . . . . . . . Total Part Build Rating . | . . . . . . . . . Parts Repaired . | . . . . . . . . . Time . | . . . . . . . . . Parts Recycled . | . . . . . . . . . Recycled Matter . | . . . . . . . . . Retrieved Matter . | . . . . . . . . . Retrieved Components . | . . . . . . . . . Parts Scanalyzed . | . . . . . . . . . Part Schematics Acquired . | . . . . . . . . . Parts Damaged . | . . . . . . . . . Bothacking | -11 -10 -10 -8 -8 -8 -7 -7 -7 ------------ Run | Yrd Mat Sub Mat Sto Gar Fac Low Low Used RIF Installer 1 | . . . . . 1 . . . Robots Hacked 12 | . . . . . . 5 5 2 Non-combat 2 | . . . . . . 1 . 1 Combat 10 | . . . . . . 4 5 1 Robot Hacks Applied 14 | . . . . . . 5 6 3 scatter_targeting 1 | . . . . . . . 1 . mark_system 1 | . . . . . . . 1 . overload_power 1 | . . . . . . . 1 . reboot_system 1 | . . . . . . . 1 . streamctrl_high 5 | . . . . . . 1 2 2 formatsys_low 2 | . . . . . . 1 . 1 formatsys_high 3 | . . . . . . 3 . . Relay Couplers Released 7 | . . . . . 7 . . . Machine Destruction 7 | . . . . . 7 . . . Attached 6 | . . . . . . 5 . 1 Fabnet Peak Effective % . | . . . . . . . . . Robots Rewired . | . . . . . . . . . Allies Hacked . | . . . . . . . . . Hacks Repelled . | . . . . . . . . . Allies | -11 -10 -10 -8 -8 -8 -7 -7 -7 -------- Run | Yrd Mat Sub Mat Sto Gar Fac Low Low Total Allies 19 | . . . . 10 . 5 2 2 Largest Group 10 | . . . . 10 10 6 1 1 Highest-Rated Group 173 | . . . . 173 173 99 12 20 Highest-Rated Ally 32 | . . . . 29 29 32 12 20 Total Orders 2 | . . . . 1 . . . 1 ROAM 1 | . . . . . . . . 1 AID 1 | . . . . 1 . . . . Ally Attacks 100 | . . . . 3 37 52 8 . Total Damage 1171 | . . . . 43 515 521 92 . Kills 12 | . . . . 1 6 4 1 . Allies Corrupted . | . . . . . . . . . Allies Melted 1 | . . . . . . . . 1 Intel | -11 -10 -10 -8 -8 -8 -7 -7 -7 ------- Run | Yrd Mat Sub Mat Sto Gar Fac Low Low Robot Analysis Total . | . . . . . . . . . Derelict Logs Recovered 5 | . . 1 . . . . 1 3 Drone Launches . | . . . . . . . . . Drone Recoveries . | . . . . . . . . . Exploration | -11 -10 -10 -8 -8 -8 -7 -7 -7 ------------- Run | Yrd Mat Sub Mat Sto Gar Fac Low Low Turns Passed 18427 | 124 1452 2185 776 1772 615 660 1883 8960 Spaces Moved 4485 | 47 367 904 256 605 246 271 795 994 Core 471 | 47 17 . 1 . . . . 406 Treads 601 | . 348 4 5 62 . 1 2 179 Legs . | . . . . . . . . . Wheels 3410 | . 2 900 250 542 246 270 793 407 Hover 2 | . . . . . . . . 2 Flight 1 | . . . . 1 . . . . Fastest Speed 50 | 50 200 200 215 215 230 215 215 215 Average Speed 373 | 190 316 207 242 240 230 226 215 869 Slowest Speed 1950 | 250 320 560 1800 1390 230 400 240 1950 Overloaded Moves . | . . . . . . . . . Propulsion Burnouts . | . . . . . . . . . Robots Hopped . | . . . . . . . . . Cave-ins Triggered . | . . . . . . . . . Exploration Rate (%) 47 | 6 66 41 23 86 33 6 82 87 Regions Visited 8 Branch Regions 4 Pre-discovered Areas 3 | . . 1 . . . . 1 1 Known Exits Taken 2 | . . . 1 1 . . . . Unknown Exits Taken 5 | 1 1 1 . . . 1 1 . Scrap Searched 7 | . . 3 . . . . 1 3 Spaces Dug 7 | . 7 . . . . . . . Terrain Destroyed 140 | . 7 16 14 78 . 3 16 6 Melee . | . . . . . . . . . Projectile 7 | . 7 . . . . . . . AOE 133 | . . 16 14 78 . 3 16 6 Terrain Rammed . | . . . . . . . . . Walls Destroyed . | . . . . . . . . . Machines Disabled . | . . . . . . . . . Actions | -11 -10 -10 -8 -8 -8 -7 -7 -7 --------- Run | Yrd Mat Sub Mat Sto Gar Fac Low Low Total 5513 | 65 513 1020 379 772 294 307 924 1239 Wait 441 | . 74 16 75 8 4 2 77 185 Move 4476 | 46 366 903 255 604 244 270 794 994 Hop . | . . . . . . . . . Pick Up 78 | 7 7 13 12 18 10 7 3 1 Fast Attach 16 | 4 1 1 3 . . . . 7 Attach 34 | . 2 2 5 8 . 2 9 6 Detach 4 | . . . 1 1 . . 1 1 Swap 69 | . 4 13 3 24 7 7 5 6 Drop 38 | . . . 6 14 10 5 2 1 Fire 325 | 8 58 72 18 82 2 14 33 38 Melee 16 | . . . . 13 3 . . . Ram . | . . . . . . . . . Kick . | . . . . . . . . . Crush 1 | . 1 . . . . . . . Escape Stasis 14 | . . . . . 14 . . . Rewire . | . . . . . . . . . Trap . | . . . . . . . . . Miscellaneous 1 | . . . 1 . . . . . Route ------- -11/Scrapyard -10/Materials (discovered 2 exits: [*Mat] / *Sub) -10/Subcaves -8/Materials (discovered 2 exits: *Sto x2) -8/Storage -8/Garrison -7/Factory -7/Lower Caves -7/Lower Caves (discovered 1 exit: [*Dat]) History --------- Turn | Location | Event 10 | -11/Scrapyard | Discovered new exit (range 15) 125 | -11/Scrapyard | Entered Materials 310 | -10/Materials | Build established: Mutant 1011 | -10/Materials | Discovered new exit (range 3) 1566 | -10/Materials | Discovered new exit (range 3) 1577 | -10/Materials | Entered Subcaves 1992 | -10/Subcaves | Lost 3 parts (1p1u1w) 2093 | -10/Subcaves | Learned location of Zion (-6) 2093 | -10/Subcaves | Met a Zionite searching for "candidates" 2099 | -10/Subcaves | Learned 2 Materials zone layouts 2264 | -10/Subcaves | A swath of the cavern ceiling suddenly collapsed 3123 | -10/Subcaves | Visited 4L-MR0's lab 3188 | -10/Subcaves | Found Gun Armor 3191 | -10/Subcaves | Attached Gun Armor, gained temporary slots: Weapon x2 3444 | -10/Subcaves | Visited Clippyterm 3628 | -10/Subcaves | Disturbed a concealed Subdweller 3735 | -10/Subcaves | Shifting Twisted Machinery released Mak. Light Armor Plating 3743 | -10/Subcaves | Shifting Twisted Machinery released Piercing Trap 3744 | -10/Subcaves | Discovered new exit (range 9) 3762 | -10/Subcaves | Entered Materials 3762 | -8/Materials | Evolved 4 slots: Propulsion x1, Utility x3 4378 | -8/Materials | Discovered new exit (range 16) 4497 | -8/Materials | Discovered new exit (range 7) 4531 | -8/Materials | Identified exit to Storage 4538 | -8/Materials | Entered Storage 6159 | -8/Storage | Assisted by bots powering up and referring to "LRC-V3" 6308 | -8/Storage | Identified exit to Garrison 6310 | -8/Storage | Entered Garrison 6310 | -8/Garrison | Accompanied by 10 allies 6382 | -8/Garrison | Triggered checkpoint 6448 | -8/Garrison | Installed Relay Interface Framework 6457 | -8/Garrison | Build established: Commander-Mutant 6504 | -8/Garrison | Garrison Relay disabled 6622 | -8/Garrison | Triggered checkpoint 6634 | -8/Garrison | Triggered checkpoint 6671 | -8/Garrison | Lost 3 allies 6782 | -8/Garrison | Triggered checkpoint 6814 | -8/Garrison | Garrison Relay disabled 6886 | -8/Garrison | Discovered new exit (range 15) 6916 | -8/Garrison | Identified exit to Factory 6925 | -8/Garrison | Entered Factory 6925 | -7/Factory | Accompanied by 5 allies 6925 | -7/Factory | Evolved 2 slots: Utility x2 7110 | -7/Factory | Build established: Bothacker-Mutant 7405 | -7/Factory | Discovered new exit (range 16) 7469 | -7/Factory | Lost 4 allies 7585 | -7/Factory | Entered Lower Caves 7585 | -7/Lower Caves | Accompanied by 2 allies 7620 | -7/Lower Caves | Lost 4 allies 8224 | -7/Lower Caves | Learned location of Armory (-4) 8224 | -7/Lower Caves | Learned 8 Research zone layouts 8224 | -7/Lower Caves | Learned Research trap positions 8224 | -7/Lower Caves | Learned Armory terminal intel 8224 | -7/Lower Caves | Learned Armory garrison access intel 8224 | -7/Lower Caves | Learned Extension garrison access intel 8462 | -7/Lower Caves | Lost 8 parts (1p4n1u2w) 8740 | -7/Lower Caves | Learned 8 Factory zone layouts 8964 | -7/Lower Caves | Encountered a Warlord checkpoint 9400 | -7/Lower Caves | Discovered new exit (range 7) 9468 | -7/Lower Caves | Entered another Lower Caves area 9578 | -7/Lower Caves | Learned Factory emergency access door positions 10257 | -7/Lower Caves | Discovered new exit (range 15) 10630 | -7/Lower Caves | Attracted the attention of an 0b10 checkpoint 10995 | -7/Lower Caves | Core integrity fell below 50% 11198 | -7/Lower Caves | Learned Factory trap positions 11842 | -7/Lower Caves | Lost 4 parts (1n1u2w) 18414 | -7/Lower Caves | Attracted the attention of an 0b10 outpost 18422 | -7/Lower Caves | Core integrity fell below 20% 18428 | -7/Lower Caves | Destroyed by S-27 Virus with Autogun Last Messages --------------- 12033_ Acquired 2 matter. 13353_ Acquired 8 matter. 15300_ Acquired Hvy. Ion Cannon. 15317_ Acquired Field Laser. 15336_ Acquired 1 matter. 18413_ Penetrated by Slug. 18414_ Y-64 Sentinel: "DETECTED UNIDENTIFIED DERELICT." 18416_ Penetrated by Slug. 18417_ Field Laser destroyed. 18417_ Lyr. Light Armor Plating destroyed. 18417_ Imp. EM Shotgun destroyed. 18418_ Y-64 Sentinel: "REQUESTING BACKUP." 18419_ Imp. Deuterium Engine destroyed. 18419_ Penetrated by Slug. 18421_ Broken Lgt. Treads destroyed. 18421_ Slug penetrates Wall. 18425_ Relay Coupler [Brawler] severed. 18427_ Penetrated by Slug. [Achievement: Achiever] Map ----- +----------------------------------------------------+ | ????????????## #### #??## #????????? | | ???????????## #??## #?????????? | | #??????????# #?# #????# #??????????? | | ##???????## #??# ##???## #???????????? | | ##??????# #### # #???## #???????????? | | ####???# ## ##### ##???????????? | | #???### # ## ##???????????# | | ####??# ## #### # ###????????## | | #?# #??# ## #??######### #????##### | | ### #??# ## #??????????# ###### | | ## #### ## #?????##???## | | # #?????# ##??# | | ## #?????# #??# ###### | | ##### ### #?????# ##?# #???## | | #???###?## #?????## ### ##??# | | ## ###???## ????# #??# | | #????? #?## #?#### | | #???? ## ## #???### | | ???? ########## ##?????## | | ???? #??####??? #???????### | | ## ?# ### ? ????# #??????#### | | #######?# ??? ???#### ### ###????##?????## | | ?????????? ??????????# # "#???????????# | | ???###????? ???????????# # s "#???????????# | | ??# #????????????????## Y#???????????????# | | ## #????????#????????#;;@l%!#????????????????? | | # #???##### #????????### # sl"#?????????????## | | #??# ????????# #??""""#?#????????????## | | ### ????????# ######## #?????????????# | | #?# ???????## #?????????????? | | ### ??????# ####?????????????? | | ## #? ???????# ###??############ | | ## #?????## #### | | #????## | | ????## ######### | | ## ?????# #######???????? | | #???????????# ## ##?????????????? | | ## ##??????????# ?### ###??????????????? | | ### #??????????## #???# #????????????????? | | ### #???????????##????# #????????????????? | | ## #???##??????????#?## ##???????????????? | | ##?## ##?????#### ??# #???????????????? | | #### #??#### ??## #???????????????? | | #?## ??# #???????????????? | | ## #??# ??# ##??????????????? | | ?## ##??# #?## ####???????????? | | ??# ####?# ### #???????????? | | ?## #??# #### ##???????????? | | ?# ###### #???# ##??##????????????? | | ?# ##????# ###### #????????????????? | +----------------------------------------------------+ Best States ------------- Heat Dissipation 34 Energy Generation 16 Energy Capacity 290 Matter Stores 300 Matter Capacity 300 Sight Range 21 Robot Scan Range 15 Terrain Scan Range 14 Terrain Scan Density 10 Armor Coverage 375 Resistance: KI 30 Evasion (%) 40 Recoil Reduction 2 Defensive Hacking 10 Relay Coupler Types 5 Relay Coupler Value 91 Item Schematics ----------------- None Robot Schematics ------------------ None Fabricated ------------ Nothing Alien Tech Used ----------------- None Achievements -------------- Achiever Assimilation Complete Error 47 Factory Defaults Challenges ------------ None Game ------ Seed BladeAlertKit Manual? 0 Play Time 01:17:53 Cumulative 20.7 hours Start 2024.04.28 @ 18:06:18 End 2024.04.28 @ 19:22:26 Sessions 1 Manual Loads 0 Difficulty Rogue Special Mode None Game No. 40 Rogue 40 Adventurer 0 Explorer 0 Win Type - Total 0 Types 0/0/0/0/0/0/0/0/0 Lore% 19 Gallery% 27 Achievement% 25 Wizard Run 0 Options --------- Layout 1 ASCII 0 Keyboard 0 Movement Vi Keybinds 0 Fullscreen 2 Font 24/Smallcaps Map View 50x35 Zoom Use 0% Tactical HUD 1 Map Filters NONE Filters NONE Steam 1 RUN: 85d4c59a-1be5-4806-8c02-3b5a57a1d7ba